[Event "*** Titled Tuesday 3|2 Blitz"]
[Site "Chess.com"]
[Date "2016.02.02"]
[Round "2"]
[White "Er_is_geen_hoop_meer"]
[Black "HovmoellerHest"]
[Result "1-0"]
[WhiteElo "2306"]
[BlackElo "2159"]
[TimeControl "180+2"]
[EndTime "11:26:18 PST"]
[Termination "Er_is_geen_hoop_meer won by resignation"]

1. d4 {[%clk 0:03:01.9]} 1... Nf6 {[%clk 0:03:00.8]} 2. c4 {[%clk 0:03:03.1]}
2... e6 {[%clk 0:03:01.5]} 3. Nc3 {[%clk 0:03:04.2]} 3... Bb4 {[%clk 0:03:01.9]}
4. Qc2 {[%clk 0:03:05.6]} 4... O-O {[%clk 0:03:01.1]} 5. Nf3 {[%clk 0:03:06.2]}
5... c5 {[%clk 0:03:00.7]} 6. dxc5 {[%clk 0:03:06.6]} 6... Bxc5 {[%clk
0:02:56.8]} 7. g3 {[%clk 0:03:07.1]} 7... Nc6 {[%clk 0:02:55.3]} 8. Bg2 {[%clk
0:03:08.3]} 8... b6 {[%clk 0:02:49.6]} 9. O-O {[%clk 0:03:08.9]} 9... Bb7 {[%clk
0:02:49.2]} 10. a3 {[%clk 0:03:10.1]} 10... a5 {[%clk 0:02:48.4]} 11. b3 {[%clk
0:03:11.1]} 11... Qe7 {[%clk 0:02:39.1]} 12. Rd1 {[%clk 0:03:11.3]} 12... Rfd8
{[%clk 0:02:37.3]} 13. Na4 {[%clk 0:03:11.7]} 13... Rac8 {[%clk 0:02:32]} 14.
Bf4 {[%clk 0:03:07]} 14... e5 {[%clk 0:02:23.6]} 15. Bg5 {[%clk 0:03:07.8]}
15... h6 {[%clk 0:02:23.5]} 16. Bxf6 {[%clk 0:03:08.3]} 16... Qxf6 {[%clk
0:02:24.8]} 17. Nxc5 {[%clk 0:03:09.5]} 17... bxc5 {[%clk 0:02:25.6]} 18. e3
{[%clk 0:03:10.7]} 18... d6 {[%clk 0:02:23.8]} 19. Nd2 {[%clk 0:03:11.3]} 19...
Qe7 {[%clk 0:02:18.1]} 20. Bd5 {[%clk 0:03:10.8]} 20... Rd7 {[%clk 0:02:11.6]}
21. Ne4 {[%clk 0:03:11.8]} 21... Nd8 {[%clk 0:02:10.6]} 22. Nc3 {[%clk
0:03:12.5]} 22... Bc6 {[%clk 0:02:01.4]} 23. Kg2 {[%clk 0:03:11.1]} 23... Ne6
{[%clk 0:01:57.2]} 24. Qd2 {[%clk 0:03:07.7]} 24... Kh8 {[%clk 0:01:54.8]} 25.
Bxc6 {[%clk 0:03:08.1]} 25... Rxc6 {[%clk 0:01:55.3]} 26. Nd5 {[%clk 0:03:09.4]}
26... Qd8 {[%clk 0:01:54.4]} 27. h4 {[%clk 0:03:10.4]} 27... Ra6 {[%clk
0:01:52.9]} 28. Nc3 {[%clk 0:03:07.3]} 28... Nc7 {[%clk 0:01:50]} 29. Na4 {[%clk
0:03:04.4]} 29... Rc6 {[%clk 0:01:44.1]} 30. Kh2 {[%clk 0:03:03.9]} 30... Ne6
{[%clk 0:01:42.1]} 31. Kg2 {[%clk 0:03:04.7]} 31... Kg8 {[%clk 0:01:41.9]} 32.
Rab1 {[%clk 0:03:04.6]} 32... Kf8 {[%clk 0:01:41.7]} 33. Kh2 {[%clk 0:03:05.8]}
33... Ke7 {[%clk 0:01:41.8]} 34. f4 {[%clk 0:03:07.1]} 34... f6 {[%clk
0:01:39.1]} 35. f5 {[%clk 0:03:07.6]} 35... Nc7 {[%clk 0:01:39.4]} 36. e4 {[%clk
0:03:05.7]} 36... Ra6 {[%clk 0:01:35.9]} 37. g4 {[%clk 0:03:06.3]} 37... Na8
{[%clk 0:01:35.7]} 38. Qd5 {[%clk 0:03:05.6]} 38... Nb6 {[%clk 0:01:32.4]} 39.
Qe6+ {[%clk 0:03:06.8]} 39... Kf8 {[%clk 0:01:33.3]} 40. Nc3 {[%clk 0:03:04]}
40... Nc8 {[%clk 0:01:12.9]} 41. Nb5 {[%clk 0:03:04.7]} 41... Qe7 {[%clk
0:01:07.9]} 42. Qd5 {[%clk 0:03:03.2]} 42... Qf7 {[%clk 0:01:04.4]} 43. Qd2
{[%clk 0:03:00.9]} 43... Qe7 {[%clk 0:01:04]} 44. Rg1 {[%clk 0:03:00.9]} 44...
Na7 {[%clk 0:01:02.6]} 45. Nxa7 {[%clk 0:02:59.1]} 45... Raxa7 {[%clk
0:01:02.2]} 46. g5 {[%clk 0:03:01]} 46... hxg5 {[%clk 0:01:01.8]} 47. hxg5
{[%clk 0:03:02.9]} 47... fxg5 {[%clk 0:01:00]} 48. Rxg5 {[%clk 0:03:02.4]} 48...
Qf6 {[%clk 0:01:00.6]} 49. Kg2 {[%clk 0:02:57]} 49... Kf7 {[%clk 0:00:54.4]} 50.
Rh1 {[%clk 0:02:57.4]} 50... Ra8 {[%clk 0:00:48.9]} 51. Rg6 {[%clk 0:02:58.2]}
51... Qe7 {[%clk 0:00:47.2]} 52. Rh7 {[%clk 0:02:59.2]} 52... Rg8 {[%clk
0:00:43.5]} 53. Qd5+ {[%clk 0:02:51.6]} 53... Kf8 {[%clk 0:00:42.5]} 54. f6
{[%clk 0:02:53]} 54... Qf7 {[%clk 0:00:33.5]} 55. Qa8+ {[%clk 0:02:43.3]} 55...
Qe8 {[%clk 0:00:33.7]} 56. Qxe8+ {[%clk 0:02:38.9]} 56... Kxe8 {[%clk
0:00:34.2]} 57. Rhxg7 {[%clk 0:02:40.2]} 57... Rdxg7 {[%clk 0:00:32.3]} 58. fxg7
{[%clk 0:02:42.1]} 58... Kf7 {[%clk 0:00:31.1]} 59. Rxd6 {[%clk 0:02:43.2]}
59... Rxg7+ {[%clk 0:00:32.5]} 60. Kf3 {[%clk 0:02:43.9]} 60... Rg1 {[%clk
0:00:33.5]} 61. Rb6 {[%clk 0:02:42.9]} 61... Ra1 {[%clk 0:00:32.1]} 62. a4
{[%clk 0:02:44.2]} 62... Rb1 {[%clk 0:00:30.7]} 63. Ke3 {[%clk 0:02:45.3]} 63...
Ke7 {[%clk 0:00:31.7]} 64. Kd3 {[%clk 0:02:45.8]} 64... Rh1 {[%clk 0:00:31.5]}
65. Rc6 {[%clk 0:02:41.6]} 65... Rh3+ {[%clk 0:00:31.4]} 66. Kc2 {[%clk
0:02:42.7]} 66... Rh2+ {[%clk 0:00:32.6]} 67. Kc3 {[%clk 0:02:44.1]} 67... Rh3+
{[%clk 0:00:33.6]} 68. Kb2 {[%clk 0:02:45.7]} 68... Rh2+ {[%clk 0:00:35.1]} 69.
Ka3 {[%clk 0:02:47.2]} 69... Re2 {[%clk 0:00:35.2]} 70. Rxc5 {[%clk 0:02:48.7]}
70... Rxe4 {[%clk 0:00:34.5]} 71. Rxa5 {[%clk 0:02:50.6]} 71... Kd6 {[%clk
0:00:35.3]} 72. Rd5+ {[%clk 0:02:51]} 72... Kc6 {[%clk 0:00:35.8]} 73. a5 {[%clk
0:02:51.6]} 73... Re1 {[%clk 0:00:35.7]} 74. Kb4 {[%clk 0:02:50.9]} 74... e4
{[%clk 0:00:36.5]} 75. Rh5 {[%clk 0:02:51.7]} 75... e3 {[%clk 0:00:36]} 76. Rh6+
{[%clk 0:02:53.1]} 76... Kb7 {[%clk 0:00:36.9]} 77. Kb5 {[%clk 0:02:54]} 77...
e2 {[%clk 0:00:37.2]} 78. Rh7+ {[%clk 0:02:55.3]} 78... Kc8 {[%clk 0:00:37.7]}
79. Re7 {[%clk 0:02:57.2]} 79... Kd8 {[%clk 0:00:37.6]} 80. Re5 {[%clk
0:02:55.6]} 80... Kc7 {[%clk 0:00:37.7]} 81. b4 {[%clk 0:02:56.4]} 81... Kd7
{[%clk 0:00:37.3]} 82. c5 {[%clk 0:02:57.5]} 82... Kc7 {[%clk 0:00:38.1]} 83. a6
{[%clk 0:02:59]} 83... Kb8 {[%clk 0:00:38]} 84. Re8+ {[%clk 0:02:58.6]} 84...
Kc7 {[%clk 0:00:39.1]} 85. Re7+ {[%clk 0:03:00.2]} 85... Kd8 {[%clk 0:00:40.3]}
86. a7 {[%clk 0:03:00.4]} 86... Kxe7 {[%clk 0:00:38]} 87. a8=Q {[%clk
0:03:01.3]} 87... Kf6 {[%clk 0:00:36.4]} 88. Qf3+ {[%clk 0:03:01.8]} 88... Ke7
{[%clk 0:00:35.9]} 89. Qf2 {[%clk 0:03:03.7]} 1-0

[Event "*** Titled Tuesday 3|2 Blitz"]
[Site "Chess.com"]
[Date "2016.02.02"]
[Round "2"]
[White "FabianEnglert"]
[Black "Jahonas"]
[Result "1-0"]
[WhiteElo "2342"]
[BlackElo "2154"]
[TimeControl "180+2"]
[EndTime "11:26:35 PST"]
[Termination "FabianEnglert won by resignation"]

1. Nf3 {[%clk 0:03:01.9]} 1... c6 {[%clk 0:03:00.9]} 2. g3 {[%clk 0:03:02.5]}
2... d5 {[%clk 0:03:01.9]} 3. Bg2 {[%clk 0:03:03.7]} 3... Nf6 {[%clk 0:03:03.5]}
4. O-O {[%clk 0:03:04.5]} 4... g6 {[%clk 0:03:04.8]} 5. b3 {[%clk 0:03:04.5]}
5... Bg7 {[%clk 0:03:05.3]} 6. Bb2 {[%clk 0:03:06.1]} 6... O-O {[%clk
0:03:06.3]} 7. c4 {[%clk 0:03:07.8]} 7... b6 {[%clk 0:03:07.3]} 8. d3 {[%clk
0:03:07.2]} 8... Bb7 {[%clk 0:03:07.3]} 9. Nbd2 {[%clk 0:03:05.8]} 9... Nbd7
{[%clk 0:03:06.2]} 10. Qc2 {[%clk 0:03:03.5]} 10... Rc8 {[%clk 0:03:06]} 11.
Rad1 {[%clk 0:03:01]} 11... e6 {[%clk 0:03:06.6]} 12. e4 {[%clk 0:03:01.5]}
12... Qc7 {[%clk 0:02:57.9]} 13. Rfe1 {[%clk 0:03:00]} 13... Rfd8 {[%clk
0:02:56.5]} 14. h3 {[%clk 0:02:45.9]} 14... Nc5 {[%clk 0:02:42]} 15. e5 {[%clk
0:02:43.1]} 15... Ne8 {[%clk 0:02:26.7]} 16. Nf1 {[%clk 0:02:28.5]} 16... dxc4
{[%clk 0:02:23.5]} 17. dxc4 {[%clk 0:02:27.5]} 17... a5 {[%clk 0:02:20]} 18. Ne3
{[%clk 0:02:22.2]} 18... Na6 {[%clk 0:02:01.3]} 19. a3 {[%clk 0:02:16.4]} 19...
Bf8 {[%clk 0:01:58.2]} 20. h4 {[%clk 0:02:11.3]} 20... Ng7 {[%clk 0:01:54.3]}
21. Ng4 {[%clk 0:02:07.7]} 21... Ne8 {[%clk 0:01:51.3]} 22. h5 {[%clk
0:02:03.7]} 22... Rxd1 {[%clk 0:01:51.8]} 23. Rxd1 {[%clk 0:02:03.8]} 23... Rd8
{[%clk 0:01:53]} 24. Ng5 {[%clk 0:01:46.5]} 24... Rxd1+ {[%clk 0:01:48.5]} 25.
Qxd1 {[%clk 0:01:48.4]} 25... Nc5 {[%clk 0:01:49.5]} 26. b4 {[%clk 0:00:49.1]}
26... axb4 {[%clk 0:01:32.3]} 27. axb4 {[%clk 0:00:51]} 27... Qd7 {[%clk
0:01:33.4]} 28. Qf3 {[%clk 0:00:44.4]} 28... Nd3 {[%clk 0:01:25.8]} 29. Ne4
{[%clk 0:00:38.9]} 29... Bg7 {[%clk 0:01:13.3]} 30. Bc3 {[%clk 0:00:39.4]} 30...
c5 {[%clk 0:01:10]} 31. b5 {[%clk 0:00:25.8]} 31... Bxe4 {[%clk 0:00:41]} 32.
Qxe4 {[%clk 0:00:27.7]} 32... gxh5 {[%clk 0:00:36.4]} 33. Nf6+ {[%clk 0:00:27]}
33... Nxf6 {[%clk 0:00:30.8]} 34. exf6 {[%clk 0:00:28.9]} 34... Bf8 {[%clk
0:00:28.2]} 35. Qf3 {[%clk 0:00:25.1]} 35... Nb4 {[%clk 0:00:12.5]} 36. Qxh5
{[%clk 0:00:23.4]} 36... Qd3 {[%clk 0:00:12.9]} 37. Bb2 {[%clk 0:00:16.3]} 37...
Qg6 {[%clk 0:00:13.1]} 38. Qe2 {[%clk 0:00:13.7]} 38... Qg5 {[%clk 0:00:09.7]}
39. Be4 {[%clk 0:00:14]} 39... h6 {[%clk 0:00:10.4]} 40. Kg2 {[%clk 0:00:14.3]}
40... Bd6 {[%clk 0:00:11.2]} 41. Bc3 {[%clk 0:00:14.6]} 41... Be5 {[%clk
0:00:11.2]} 42. Bd2 {[%clk 0:00:15.7]} 42... Qxf6 {[%clk 0:00:11.2]} 43. Qh5
{[%clk 0:00:16.3]} 43... Bd4 {[%clk 0:00:12]} 44. f4 {[%clk 0:00:16.3]} 44...
Qg7 {[%clk 0:00:11.3]} 45. f5 {[%clk 0:00:16.2]} 45... exf5 {[%clk 0:00:12]} 46.
Qxf5 {[%clk 0:00:17.3]} 46... Qf6 {[%clk 0:00:12.1]} 47. Qxf6 {[%clk 0:00:16.4]}
47... Bxf6 {[%clk 0:00:12.5]} 48. Bxh6 {[%clk 0:00:18.3]} 48... Na2 {[%clk
0:00:11.9]} 49. Bf4 {[%clk 0:00:18]} 49... Nc3 {[%clk 0:00:12.6]} 50. Bd3 {[%clk
0:00:18.9]} 50... Bd8 {[%clk 0:00:13.5]} 51. Be5 {[%clk 0:00:19.4]} 51... Na4
{[%clk 0:00:14.3]} 52. Bc2 {[%clk 0:00:17.7]} 52... f6 {[%clk 0:00:14.8]} 53.
Ba1 {[%clk 0:00:18.1]} 1-0

[Event "*** Titled Tuesday 3|2 Blitz"]
[Site "Chess.com"]
[Date "2016.02.02"]
[Round "2"]
[White "LADIESGET2KNOWME"]
[Black "KyronGriffith"]
[Result "1/2-1/2"]
[WhiteElo "2331"]
[BlackElo "2260"]
[TimeControl "180+2"]
[EndTime "11:26:42 PST"]
[Termination "Game drawn - insufficient material"]

1. d4 {[%clk 0:03:01.9]} 1... d5 {[%clk 0:02:59.8]} 2. Nc3 {[%clk 0:03:01.6]}
2... Nf6 {[%clk 0:02:59.8]} 3. Bg5 {[%clk 0:03:02.4]} 3... Nbd7 {[%clk
0:03:01.3]} 4. Nf3 {[%clk 0:03:03.2]} 4... h6 {[%clk 0:03:00.8]} 5. Bh4 {[%clk
0:03:03.9]} 5... e6 {[%clk 0:03:02.5]} 6. e3 {[%clk 0:03:01.7]} 6... Be7 {[%clk
0:03:02.3]} 7. Bd3 {[%clk 0:03:02.8]} 7... O-O {[%clk 0:02:58.8]} 8. Qe2 {[%clk
0:02:59.7]} 8... c5 {[%clk 0:02:58.9]} 9. dxc5 {[%clk 0:02:59.5]} 9... Nxc5
{[%clk 0:03:00.8]} 10. O-O-O {[%clk 0:03:00.1]} 10... Nxd3+ {[%clk 0:02:31.2]}
11. cxd3 {[%clk 0:02:57]} 11... Nd7 {[%clk 0:02:22.9]} 12. Bxe7 {[%clk 0:02:56]}
12... Qxe7 {[%clk 0:02:23.8]} 13. e4 {[%clk 0:02:56.9]} 13... dxe4 {[%clk
0:02:23.2]} 14. dxe4 {[%clk 0:02:57.1]} 14... b6 {[%clk 0:02:16.3]} 15. Kb1
{[%clk 0:02:52.2]} 15... Bb7 {[%clk 0:02:14.6]} 16. Nd4 {[%clk 0:02:46.2]} 16...
Rfd8 {[%clk 0:02:11.4]} 17. f3 {[%clk 0:02:46.7]} 17... Rac8 {[%clk 0:02:02.4]}
18. Ndb5 {[%clk 0:02:44.1]} 18... Ba6 {[%clk 0:01:50.2]} 19. Qe3 {[%clk
0:02:40.8]} 19... Ne5 {[%clk 0:01:43.8]} 20. a3 {[%clk 0:02:03]} 20... Nc4
{[%clk 0:01:29.5]} 21. Qf2 {[%clk 0:01:59]} 21... Bxb5 {[%clk 0:01:17.3]} 22.
Nxb5 {[%clk 0:01:59.9]} 22... a6 {[%clk 0:01:18.2]} 23. Nd4 {[%clk 0:01:31.8]}
23... Qc5 {[%clk 0:01:14.3]} 24. Qg1 {[%clk 0:01:06.7]} 24... e5 {[%clk
0:00:30.1]} 25. Nb3 {[%clk 0:01:06.4]} 25... Nxa3+ {[%clk 0:00:13]} 26. Ka2
{[%clk 0:00:56.1]} 26... Qc2 {[%clk 0:00:10.1]} 27. Rxd8+ {[%clk 0:00:47]} 27...
Rxd8 {[%clk 0:00:12]} 28. Kxa3 {[%clk 0:00:48.4]} 28... b5 {[%clk 0:00:10.8]}
29. Qc1 {[%clk 0:00:36.5]} 29... Qxg2 {[%clk 0:00:11.2]} 30. Rg1 {[%clk
0:00:37.5]} 30... Qxf3 {[%clk 0:00:12.5]} 31. Qxh6 {[%clk 0:00:36.5]} 31... g6
{[%clk 0:00:13.7]} 32. Rg3 {[%clk 0:00:27]} 32... Qxe4 {[%clk 0:00:13.4]} 33.
Nc5 {[%clk 0:00:15.4]} 33... b4+ {[%clk 0:00:09.5]} 34. Ka2 {[%clk 0:00:07.1]}
34... Qc4+ {[%clk 0:00:10.4]} 35. Nb3 {[%clk 0:00:04.9]} 35... Qe6 {[%clk
0:00:11]} 36. Qe3 {[%clk 0:00:05.5]} 36... a5 {[%clk 0:00:11.7]} 37. Kb1 {[%clk
0:00:04.6]} 37... a4 {[%clk 0:00:12.5]} 38. Nc1 {[%clk 0:00:06.5]} 38... Rc8
{[%clk 0:00:12.9]} 39. Qd3 {[%clk 0:00:07.3]} 39... e4 {[%clk 0:00:13.1]} 40.
Qd2 {[%clk 0:00:06.6]} 40... a3 {[%clk 0:00:12.7]} 41. Re3 {[%clk 0:00:07.2]}
41... axb2 {[%clk 0:00:12.9]} 42. Kxb2 {[%clk 0:00:08.3]} 42... Qc4 {[%clk
0:00:13.7]} 43. Nb3 {[%clk 0:00:09.5]} 43... Qc3+ {[%clk 0:00:13.8]} 44. Rxc3
{[%clk 0:00:10.5]} 44... bxc3+ {[%clk 0:00:15.5]} 45. Qxc3 {[%clk 0:00:12.4]}
45... Rxc3 {[%clk 0:00:17]} 46. Kxc3 {[%clk 0:00:14.3]} 46... f5 {[%clk
0:00:18.9]} 47. Kd4 {[%clk 0:00:15.8]} 47... Kg7 {[%clk 0:00:20.2]} 48. Ke5
{[%clk 0:00:16.7]} 48... Kh6 {[%clk 0:00:21.9]} 49. Nd4 {[%clk 0:00:18]} 49...
Kg5 {[%clk 0:00:22.9]} 50. Ne2 {[%clk 0:00:18.2]} 50... Kg4 {[%clk 0:00:23.9]}
51. Nf4 {[%clk 0:00:15]} 51... g5 {[%clk 0:00:24.5]} 52. Ne2 {[%clk 0:00:12.8]}
52... Kh3 {[%clk 0:00:19.8]} 53. Kxf5 {[%clk 0:00:13.6]} 53... Kxh2 {[%clk
0:00:21.1]} 54. Kxg5 {[%clk 0:00:13.1]} 54... Kg2 {[%clk 0:00:22.8]} 55. Kf4
{[%clk 0:00:14.1]} 55... Kf2 {[%clk 0:00:24.3]} 56. Nc3 {[%clk 0:00:15.2]} 56...
e3 {[%clk 0:00:25.7]} 57. Ke4 {[%clk 0:00:16.2]} 57... e2 {[%clk 0:00:27.1]} 58.
Nxe2 {[%clk 0:00:16.9]} 1/2-1/2

[Event "*** Titled Tuesday 3|2 Blitz"]
[Site "Chess.com"]
[Date "2016.02.02"]
[Round "2"]
[White "AnthonyWirig"]
[Black "arnacman"]
[Result "1-0"]
[WhiteElo "2539"]
[BlackElo "2236"]
[TimeControl "180+2"]
[EndTime "11:26:43 PST"]
[Termination "AnthonyWirig won by resignation"]

1. d4 {[%clk 0:03:01.9]} 1... d5 {[%clk 0:03:00.5]} 2. Nf3 {[%clk 0:03:01.9]}
2... Nf6 {[%clk 0:02:59.6]} 3. e3 {[%clk 0:02:59.1]} 3... c5 {[%clk 0:02:55.6]}
4. dxc5 {[%clk 0:02:55.7]} 4... e6 {[%clk 0:02:56.4]} 5. a3 {[%clk 0:02:56.2]}
5... Bxc5 {[%clk 0:02:56.1]} 6. b4 {[%clk 0:02:57.1]} 6... Be7 {[%clk 0:02:57]}
7. c4 {[%clk 0:02:55.2]} 7... dxc4 {[%clk 0:02:56]} 8. Qxd8+ {[%clk 0:02:52.4]}
8... Bxd8 {[%clk 0:02:56.9]} 9. Bxc4 {[%clk 0:02:53.9]} 9... a6 {[%clk
0:02:53.5]} 10. Bb2 {[%clk 0:02:45.5]} 10... b5 {[%clk 0:02:51.4]} 11. Be2
{[%clk 0:02:47]} 11... Bb7 {[%clk 0:02:52.1]} 12. Nbd2 {[%clk 0:02:46.4]} 12...
O-O {[%clk 0:02:48.4]} 13. Nb3 {[%clk 0:02:46.4]} 13... Bb6 {[%clk 0:02:46.1]}
14. O-O {[%clk 0:02:41.6]} 14... Nbd7 {[%clk 0:02:43]} 15. Rac1 {[%clk 0:02:38]}
15... Rfc8 {[%clk 0:02:39.7]} 16. Bd4 {[%clk 0:02:36.9]} 16... Bd5 {[%clk
0:02:29.1]} 17. Bxb6 {[%clk 0:02:29.2]} 17... Nxb6 {[%clk 0:02:29.6]} 18. Na5
{[%clk 0:02:29.5]} 18... Nc4 {[%clk 0:02:19.7]} 19. Bxc4 {[%clk 0:02:29.2]}
19... Bxc4 {[%clk 0:02:20.4]} 20. Rfe1 {[%clk 0:02:21.9]} 20... Bd5 {[%clk
0:02:18.6]} 21. Nd2 {[%clk 0:02:16.9]} 21... Ne4 {[%clk 0:02:11.3]} 22. Nxe4
{[%clk 0:02:15.4]} 22... Bxe4 {[%clk 0:02:12.2]} 23. f3 {[%clk 0:02:17.1]} 23...
Bg6 {[%clk 0:02:09.2]} 24. Kf2 {[%clk 0:02:06]} 24... Kf8 {[%clk 0:02:08.7]} 25.
e4 {[%clk 0:02:06.9]} 25... f6 {[%clk 0:02:07.2]} 26. Ke3 {[%clk 0:01:50.8]}
26... Be8 {[%clk 0:02:05.4]} 27. e5 {[%clk 0:01:48.5]} 27... Ke7 {[%clk
0:02:01.8]} 28. exf6+ {[%clk 0:01:31.8]} 28... gxf6 {[%clk 0:02:00.7]} 29. g4
{[%clk 0:01:33.5]} 29... Bd7 {[%clk 0:01:51.8]} 30. Nb3 {[%clk 0:01:30.9]} 30...
Rxc1 {[%clk 0:01:41.9]} 31. Rxc1 {[%clk 0:01:31.2]} 31... Kd6 {[%clk 0:01:35.9]}
32. Rd1+ {[%clk 0:01:30.2]} 32... Ke7 {[%clk 0:01:34.8]} 33. Rc1 {[%clk
0:01:30.8]} 33... Kd6 {[%clk 0:01:34.3]} 34. h3 {[%clk 0:01:30.9]} 34... Bc6
{[%clk 0:01:32.7]} 35. Nd4 {[%clk 0:01:24.4]} 35... Bd5 {[%clk 0:01:31.9]} 36.
f4 {[%clk 0:01:26.1]} 36... Kd7 {[%clk 0:01:16]} 37. h4 {[%clk 0:01:26.5]} 37...
Rc8 {[%clk 0:01:15.7]} 38. Rxc8 {[%clk 0:01:25.9]} 38... Kxc8 {[%clk 0:01:16.6]}
39. g5 {[%clk 0:01:27.6]} 39... fxg5 {[%clk 0:01:14.3]} 40. fxg5 {[%clk
0:01:27.7]} 40... Kd7 {[%clk 0:01:14]} 41. h5 {[%clk 0:01:18.5]} 41... e5 {[%clk
0:01:01.3]} 42. Nf5 {[%clk 0:00:59.1]} 42... Ke6 {[%clk 0:01:00.5]} 43. g6
{[%clk 0:00:47.5]} 43... h6 {[%clk 0:00:27.9]} 44. Nxh6 {[%clk 0:00:41.3]} 44...
Kf6 {[%clk 0:00:28.7]} 45. Ng4+ {[%clk 0:00:38.3]} 45... Kg5 {[%clk 0:00:29.3]}
46. Nxe5 {[%clk 0:00:34.2]} 46... Kxh5 {[%clk 0:00:30]} 47. Kd4 {[%clk
0:00:35.5]} 47... Bg8 {[%clk 0:00:24.9]} 48. Kc5 {[%clk 0:00:35]} 48... Kg5
{[%clk 0:00:25.9]} 49. Kb6 {[%clk 0:00:35.8]} 49... Kf5 {[%clk 0:00:26.9]} 50.
Nc6 {[%clk 0:00:37.4]} 50... Bc4 {[%clk 0:00:21.8]} 51. g7 {[%clk 0:00:34.4]}
51... Kf6 {[%clk 0:00:21.6]} 52. Kxa6 {[%clk 0:00:34.1]} 52... Kxg7 {[%clk
0:00:22.7]} 53. Nd4 {[%clk 0:00:33.9]} 53... Kf6 {[%clk 0:00:22.6]} 54. Nxb5
{[%clk 0:00:35.4]} 54... Ke6 {[%clk 0:00:21.8]} 55. Kb6 {[%clk 0:00:36.5]} 55...
Kd7 {[%clk 0:00:22.8]} 56. Na7 {[%clk 0:00:37.4]} 56... Bf1 {[%clk 0:00:22.9]}
57. a4 {[%clk 0:00:38.5]} 57... Bg2 {[%clk 0:00:23.3]} 58. a5 {[%clk 0:00:39.5]}
58... Bf3 {[%clk 0:00:24]} 59. b5 {[%clk 0:00:40.9]} 59... Bg2 {[%clk
0:00:24.8]} 60. Nc6 {[%clk 0:00:42]} 60... Kc8 {[%clk 0:00:23.9]} 61. a6 {[%clk
0:00:43.3]} 1-0

[Event "*** Titled Tuesday 3|2 Blitz"]
[Site "Chess.com"]
[Date "2016.02.02"]
[Round "2"]
[White "E-Shaposhnikov"]
[Black "spectralsoul"]
[Result "1-0"]
[WhiteElo "2516"]
[BlackElo "2550"]
[TimeControl "180+2"]
[EndTime "11:26:49 PST"]
[Termination "E-Shaposhnikov won by resignation"]

1. e4 {[%clk 0:02:55.2]} 1... d6 {[%clk 0:02:58.1]} 2. d4 {[%clk 0:02:54.8]}
2... Nf6 {[%clk 0:02:56.3]} 3. Nc3 {[%clk 0:02:55.8]} 3... g6 {[%clk 0:02:56.5]}
4. Nf3 {[%clk 0:02:56.4]} 4... Bg7 {[%clk 0:02:57.3]} 5. Bf4 {[%clk 0:02:57]}
5... Nh5 {[%clk 0:02:54.2]} 6. Be3 {[%clk 0:02:54.2]} 6... c6 {[%clk 0:02:51.8]}
7. h3 {[%clk 0:02:46]} 7... Nd7 {[%clk 0:02:49.8]} 8. Qd2 {[%clk 0:02:40.9]}
8... Qa5 {[%clk 0:02:49.8]} 9. Bd3 {[%clk 0:02:35.8]} 9... O-O {[%clk
0:02:48.7]} 10. a4 {[%clk 0:02:29.2]} 10... b5 {[%clk 0:02:41.7]} 11. O-O {[%clk
0:02:24]} 11... b4 {[%clk 0:02:42.8]} 12. Ne2 {[%clk 0:02:20.9]} 12... c5 {[%clk
0:02:41.5]} 13. c3 {[%clk 0:02:17.4]} 13... Rb8 {[%clk 0:02:41.8]} 14. c4 {[%clk
0:02:14]} 14... cxd4 {[%clk 0:02:41.1]} 15. Nexd4 {[%clk 0:02:12.3]} 15... Bb7
{[%clk 0:02:41.5]} 16. Nb3 {[%clk 0:02:09.6]} 16... Qc7 {[%clk 0:02:22.6]} 17.
Bxa7 {[%clk 0:02:03.5]} 17... Ra8 {[%clk 0:02:15.6]} 18. Bd4 {[%clk 0:02:00.3]}
18... e5 {[%clk 0:02:14.7]} 19. Be3 {[%clk 0:02:00.8]} 19... Nhf6 {[%clk
0:02:15.7]} 20. Qc2 {[%clk 0:01:56.8]} 20... Rfc8 {[%clk 0:02:10.8]} 21. Rfe1
{[%clk 0:01:54.5]} 21... Qb8 {[%clk 0:02:02.4]} 22. Nbd2 {[%clk 0:01:46.2]}
22... d5 {[%clk 0:02:00.9]} 23. exd5 {[%clk 0:01:43.6]} 23... Nxd5 {[%clk
0:02:02.4]} 24. Be4 {[%clk 0:01:40.5]} 24... Nxe3 {[%clk 0:01:52.5]} 25. Rxe3
{[%clk 0:01:40.8]} 25... Nc5 {[%clk 0:01:51.1]} 26. Bxb7 {[%clk 0:01:40.2]}
26... Nxb7 {[%clk 0:01:42.2]} 27. Rae1 {[%clk 0:01:36.3]} 27... f6 {[%clk
0:01:42.5]} 28. b3 {[%clk 0:01:32.8]} 28... Qc7 {[%clk 0:01:37.6]} 29. h4 {[%clk
0:01:30.2]} 29... Bh6 {[%clk 0:01:32.8]} 30. R3e2 {[%clk 0:01:27]} 30... Rd8
{[%clk 0:01:33.7]} 31. h5 {[%clk 0:01:24.7]} 31... Kg7 {[%clk 0:01:33.8]} 32.
hxg6 {[%clk 0:01:22.2]} 32... hxg6 {[%clk 0:01:35.7]} 33. Ne4 {[%clk 0:01:23.2]}
33... Ra6 {[%clk 0:01:26.3]} 34. Rd1 {[%clk 0:01:19.3]} 34... Rxd1+ {[%clk
0:01:12.7]} 35. Qxd1 {[%clk 0:01:21.2]} 35... f5 {[%clk 0:01:14.6]} 36. Neg5
{[%clk 0:01:10.9]} 36... e4 {[%clk 0:01:14.2]} 37. Qa1+ {[%clk 0:01:10.3]} 37...
Kg8 {[%clk 0:01:14.4]} 38. Nxe4 {[%clk 0:00:40]} 38... fxe4 {[%clk 0:01:14.8]}
39. Rxe4 {[%clk 0:00:41.9]} 39... Qf7 {[%clk 0:00:58.5]} 40. Ne5 {[%clk
0:00:36]} 40... Qf6 {[%clk 0:00:55.4]} 41. Qe1 {[%clk 0:00:35.1]} 41... Nc5
{[%clk 0:00:53.8]} 42. Ng4 {[%clk 0:00:34.7]} 42... Nxe4 {[%clk 0:00:50.9]} 43.
Nxf6+ {[%clk 0:00:34.5]} 43... Nxf6 {[%clk 0:00:52.8]} 44. Qxb4 {[%clk
0:00:35.3]} 44... Bf8 {[%clk 0:00:51.1]} 45. Qb5 {[%clk 0:00:34.1]} 45... Re6
{[%clk 0:00:52.6]} 46. g3 {[%clk 0:00:33.5]} 46... Ne4 {[%clk 0:00:48.1]} 47. b4
{[%clk 0:00:27.1]} 47... Nc3 {[%clk 0:00:46.9]} 48. Qd7 {[%clk 0:00:24.3]} 48...
Re1+ {[%clk 0:00:46.8]} 49. Kg2 {[%clk 0:00:25.6]} 49... Bxb4 {[%clk 0:00:48.3]}
50. c5 {[%clk 0:00:26.5]} 50... Rd1 {[%clk 0:00:36.9]} 51. Qe6+ {[%clk 0:00:26]}
51... Kg7 {[%clk 0:00:36.7]} 52. c6 {[%clk 0:00:25.6]} 52... Nd5 {[%clk
0:00:35.7]} 53. Qd7+ {[%clk 0:00:22.6]} 53... Kf6 {[%clk 0:00:33]} 54. c7 {[%clk
0:00:17.6]} 1-0